[Event "22nd ETCC Women 2019"]
[Site "Batumi"]
[Date "2019.10.28"]
[Round "5.28"]
[White "Vidic, Teja"]
[Black "Lehaci, Miruna-Daria"]
[Result "1-0"]
[ECO "A09"]
[WhiteElo "2174"]
[BlackElo "2131"]
[Annotator "NA"]
[PlyCount "141"]
[EventDate "2019.10.24"]
[EventType "team-tourn"]
[EventCountry "GEO"]
[SourceTitle "playchess.com"]
[Source "ChessBase"]
[SourceQuality "1"]
[WhiteTeam "Slovenia"]
[BlackTeam "Romania"]
[WhiteTeamCountry "SLO"]
[BlackTeamCountry "ROU"]
[TimeControl "40/5400+30:1800+30"]

1. Nf3 {[%emt 0:00:00]} d5 {[%emt 0:00:00]} 2. c4 {[%emt 0:00:00]} d4 {[%emt 0:00:02]} 3. g3 {[%emt 0:00:00]} Nc6 {[%emt 0:01:09]} 4. Bg2 {[%emt 0:01:53]} e5 {[%emt 0:00:12]} 5. O-O {[%emt 0:02:18]} e4 {[%emt 0:03:50]} 6. Ne1 {[%emt 0:00:12]} h5 {[%emt 0:00:51]} 7. Bxe4 {[%emt 0:01:15]} h4 {[%emt 0:04:02]} 8. d3 {[%emt 0:02:04]} Bh3 {[%emt 0:02:40]} 9. Ng2 {[%emt 0:05:49]} Nf6 {[%emt 0:02:32]} 10. Bg5 {[%emt 0:02:11]} Qd7 {[%emt 0:07:19]} 11. Bxf6 {[%emt 0:01:28]} gxf6 {[%emt 0:00:04]} 12. Qa4 {[%emt 0:00:15]} Bd6 {[%emt 0:12:33]} 13. Nd2 {[%emt 0:01:30]} O-O-O {[%emt 0:10:08]} 14. c5 {[%emt 0:22:28]} Be7 {[%emt 0:05:48]} 15. b4 {[%emt 0:02:52]} f5 {[%emt 0:07:11]} 16. Bf3 {[%emt 0:05:53]} hxg3 {[%emt 0:05:58]} 17. hxg3 {[%emt 0:00:36]} Kb8 {[%emt 0:12:00]} 18. Nc4 {[%emt 0:00:27]} Bf6 {[%emt 0:05:10]} 19. b5 {[%emt 0:07:33]} Ne5 {[%emt 0:03:32]} 20. Bxb7 {[%emt 0:00:19]} Nxc4 21. Qxc4 {[%emt 0:01:13]} Qe6 {[%emt 0:06:52]} 22. Qxe6 {[%emt 0:01:58]} fxe6 {[%emt 0:00:04]} 23. Bc6 {[%emt 0:00:09]} Rh6 {[%emt 0:01:55]} 24. Rab1 {[%emt 0:04:26]} Rdh8 {[%emt 0:00:50]} 25. b6 {[%emt 0:02:16]} axb6 {[%emt 0:01:56]} 26. cxb6 {[%emt 0:01:10]} cxb6 {[%emt 0:02:11]} 27. Rxb6+ {[%emt 0:00:52]} Kc7 {[%emt 0:00:02]} 28. Rfb1 {[%emt 0:00:16]} Be5 {[%emt 0:00:07]} 29. Bf3 {[%emt 0:01:57]} Bg4 {[%emt 0:00:42]} 30. Rb7+ {[%emt 0:03:40]} Kc8 {[%emt 0:00:13]} 31. Ne1 {[%emt 0:03:14]} Bxf3 {[%emt 0:01:03]} 32. Nxf3 {[%emt 0:00:05]} Rh1+ {[%emt 0:00:07]} 33. Kg2 {[%emt 0:00:03]} Rxb1 {[%emt 0:00:06]} 34. Rxb1 {[%emt 0:00:04]} Bf6 {[%emt 0:00:08]} 35. Rb4 {[%emt 0:07:12]} Rd8 {[%emt 0:00:38]} 36. Nd2 {[%emt 0:01:19]} Kc7 {[%emt 0:00:49]} 37. Kf3 {[%emt 0:02:53]} Kc6 {[%emt 0:03:26]} 38. Rc4+ {[%emt 0:00:45]} Kd5 {[%emt 0:00:40]} 39. Ra4 {[%emt 0:01:01]} Rb8 {[%emt 0:00:36]} 40. Ra5+ {[%emt 0:00:00]} Kc6 {[%emt 0:00:00]} 41. Nc4 {[%emt 0:01:27]} Rb1 {[%emt 0:09:12]} 42. Ra6+ {[%emt 0:01:55]} Kd7 {[%emt 0:00:29]} 43. a4 {[%emt 0:00:41]} Ra1 {[%emt 0:01:14]} 44. a5 {[%emt 0:01:44]} Bd8 {[%emt 0:01:13]} 45. Rd6+ {[%emt 0:00:42]} Ke7 {[%emt 0:00:19]} 46. Rxd4 {[%emt 0:00:42]} Bxa5 {[%emt 0:01:00]} 47. Nxa5 {[%emt 0:00:05]} Rxa5 {[%emt 0:00:04]} 48. g4 {[%emt 0:01:27]} fxg4+ {[%emt 0:00:47]} 49. Rxg4 {[%emt 0:00:58]} Kf6 {[%emt 0:00:59]} 50. Rf4+ {[%emt 0:00:40]} Ke7 {[%emt 0:00:12]} 51. Ke4 {[%emt 0:00:38]} Kd6 {[%emt 0:00:46]} 52. d4 {[%emt 0:00:28]} Ra4 {[%emt 0:00:38]} 53. e3 {[%emt 0:01:27]} Ra5 {[%emt 0:00:25]} 54. Rg4 {[%emt 0:00:34]} Ke7 {[%emt 0:00:21]} 55. f4 {[%emt 0:00:54]} Kf6 {[%emt 0:00:22]} 56. Rg5 {[%emt 0:00:31]} Ra4 {[%emt 0:00:34]} 57. Re5 {[%emt 0:00:16]} Rb4 {[%emt 0:00:23]} 58. f5 {[%emt 0:00:33]} exf5+ {[%emt 0:00:11]} 59. Rxf5+ {[%emt 0:00:04]} Ke6 {[%emt 0:00:04]} 60. Rh5 {[%emt 0:00:22]} Rb3 {[%emt 0:00:12]} 61. Rh6+ {[%emt 0:00:19]} Kd7 {[%emt 0:00:07]} 62. d5 {[%emt 0:00:11]} Ra3 {[%emt 0:01:04]} 63. Kd4 {[%emt 0:00:04]} Ra1 {[%emt 0:00:18]} 64. e4 {[%emt 0:00:05]} Re1 {[%emt 0:00:05]} 65. Ke5 {[%emt 0:00:07]} Re2 {[%emt 0:00:07]} 66. Rh7+ {[%emt 0:00:04]} Ke8 {[%emt 0:00:04]} 67. d6 {[%emt 0:00:15]} Rg2 {[%emt 0:00:32]} 68. Kd5 {[%emt 0:00:33]} Rg1 {[%emt 0:00:39]} 69. e5 {[%emt 0:00:15]} Rg6 {[%emt 0:00:15]} 70. Rh8+ {[%emt 0:01:12]} Kd7 {[%emt 0:00:17]} 71. e6+ {[%emt 0:00:06]} 1-0

[Event "22nd ETCC Women 2019"]
[Site "Batumi"]
[Date "2019.10.28"]
[Round "5.28"]
[White "Cuvelier, Annelies"]
[Black "Koskoska, Gabriela"]
[Result "1/2-1/2"]
[ECO "B43"]
[WhiteElo "1844"]
[BlackElo "2036"]
[Annotator "NA"]
[PlyCount "62"]
[EventDate "2019.10.24"]
[EventType "team-tourn"]
[EventCountry "GEO"]
[SourceTitle "playchess.com"]
[Source "ChessBase"]
[SourceQuality "1"]
[WhiteTeam "Belgium"]
[BlackTeam "Macedonia"]
[WhiteTeamCountry "BEL"]
[BlackTeamCountry "MKD"]
[TimeControl "40/5400+30:1800+30"]

1. e4 {[%emt 0:00:00]} c5 {[%emt 0:00:00]} 2. Nc3 {[%emt 0:00:00]} e6 {[%emt 0:00:14]} 3. Nf3 {[%emt 0:00:00]} a6 {[%emt 0:00:46]} 4. d4 {[%emt 0:00:00]} cxd4 {[%emt 0:00:07]} 5. Nxd4 {[%emt 0:00:00]} Qc7 {[%emt 0:00:52]} 6. Bd3 {[%emt 0:02:12]} Bc5 {[%emt 0:05:58]} 7. Nb3 {[%emt 0:01:48]} Be7 {[%emt 0:01:49]} 8. O-O {[%emt 0:01:30]} Nf6 {[%emt 0:01:54]} 9. Be3 {[%emt 0:01:27]} b5 {[%emt 0:03:47]} 10. a3 {[%emt 0:01:26]} Bb7 {[%emt 0:00:55]} 11. f4 {[%emt 0:09:54]} d6 {[%emt 0:00:32]} 12. Qe2 {[%emt 0:12:19]} Nbd7 {[%emt 0:04:51]} 13. Rad1 {[%emt 0:08:24]} O-O {[%emt 0:04:44]} 14. g4 {[%emt 0:03:15]} d5 {[%emt 0:02:07]} 15. e5 {[%emt 0:04:41]} Ne4 {[%emt 0:01:35]} 16. Bd4 {[%emt 0:06:53]} Nxc3 {[%emt 0:09:47]} 17. bxc3 {[%emt 0:00:39]} Nc5 {[%emt 0:05:52]} 18. Nxc5 {[%emt 0:01:54]} Bxc5 {[%emt 0:00:04]} 19. Ra1 {[%emt 0:05:58]} Qe7 {[%emt 0:07:11]} 20. a4 {[%emt 0:02:18]} b4 {[%emt 0:05:08]} 21. Qe3 {[%emt 0:01:54]} Bxd4 {[%emt 0:02:08]} 22. cxd4 {[%emt 0:00:29]} f5 {[%emt 0:10:51]} 23. g5 {[%emt 0:08:20]} a5 {[%emt 0:01:01]} 24. c3 {[%emt 0:09:59]} bxc3 {[%emt 0:08:37]} 25. Bb5 {[%emt 0:01:28]} Rfc8 {[%emt 0:02:03]} 26. Rfc1 {[%emt 0:00:43]} h6 {[%emt 0:03:12]} 27. h4 {[%emt 0:00:27]} hxg5 {[%emt 0:09:22]} 28. hxg5 {[%emt 0:00:21]} Kf7 {[%emt 0:01:14]} 29. Rxc3 {[%emt 0:01:23]} Rxc3 {[%emt 0:02:16]} 30. Qxc3 {[%emt 0:00:05]} Qd8 {[%emt 0:00:40]} 31. Rc1 {[%emt 0:01:17]} Rc8 {[%emt 0:00:21]} 1/2-1/2

[Event "22nd ETCC Women 2019"]
[Site "Batumi"]
[Date "2019.10.28"]
[Round "5.29"]
[White "Peng, Zhaoqin"]
[Black "Atalik, Ekaterina"]
[Result "0-1"]
[ECO "D37"]
[WhiteElo "2364"]
[BlackElo "2464"]
[Annotator "ChessBase"]
[PlyCount "68"]
[EventDate "2019.10.24"]
[EventType "team-tourn"]
[EventCountry "GEO"]
[SourceTitle "playchess.com"]
[Source "ChessBase"]
[SourceQuality "1"]
[WhiteTeam "Netherlands"]
[BlackTeam "Turkey"]
[WhiteTeamCountry "NED"]
[BlackTeamCountry "TUR"]
[TimeControl "40/5400+30:1800+30"]

1. d4 {[%emt 0:00:00]} d5 {[%emt 0:00:00]} 2. c4 {[%emt 0:00:00]} e6 {[%emt 0:00:00]} 3. Nc3 {[%emt 0:00:05]} Nf6 {[%emt 0:00:13]} 4. Nf3 {[%emt 0:01:17]} a6 {[%emt 0:00:08]} 5. e3 {[%emt 0:01:33]} b6 {[%emt 0:00:39]} 6. Bd3 {[%emt 0:00:50]} Bb7 {[%emt 0:00:21]} 7. O-O {[%emt 0:01:06]} Bd6 {[%emt 0:01:23]} 8. b3 {[%emt 0:10:59]} O-O {[%emt 0:00:34]} 9. Bb2 {[%emt 0:00:07]} Nbd7 {[%emt 0:00:28]} 10. Rc1 {[%emt 0:06:22]} Qe7 {[%emt 0:04:04]} 11. Qc2 {[%emt 0:11:36]} dxc4 {[%emt 0:03:08]} 12. Bxc4 {[%emt 0:00:14]} b5 {[%emt 0:08:18]} 13. Be2 {[%emt 0:00:16]} Rac8 {[%emt 0:01:51]} 14. e4 {[%emt 0:11:25]} b4 {[%emt 0:01:45]} 15. e5 {[%emt 0:00:12]} bxc3 {[%emt 0:00:46]} 16. Bxc3 {[%emt 0:07:13]} Nd5 {[%emt 0:04:36]} 17. exd6 {[%emt 0:00:04]} cxd6 {[%emt 0:00:08]} 18. Qd2 {[%emt 0:00:08]} N7f6 {[%emt 0:02:15]} 19. Ba5 {[%emt 0:09:27]} Ne4 {[%emt 0:02:02]} 20. Qb2 {[%emt 0:14:15]} Nf4 {[%emt 0:03:27]} 21. Rxc8 {[%emt 0:10:29]} Rxc8 {[%emt 0:00:28]} 22. Bd1 {[%emt 0:05:48]} Ng5 {[%emt 0:18:32]} 23. Qd2 {[%emt 0:03:46]} Nfh3+ {[%emt 0:05:04]} 24. Kh1 {[%emt 0:00:06]} Nxf3 {[%emt 0:01:35]} 25. Bxf3 {[%emt 0:00:06]} Bxf3 {[%emt 0:00:25]} 26. gxf3 {[%emt 0:00:18]} Qf6 {[%emt 0:01:42]} 27. Qe3 {[%emt 0:02:26]} Qf5 {[%emt 0:14:33]} 28. Bd2 {[%emt 0:00:40]} g5 {[%emt 0:01:13]} 29. a4 {[%emt 0:02:17]} Rc2 {[%emt 0:02:16]} 30. Bb4 {[%emt 0:00:45]} Qd5 {[%emt 0:01:44]} 31. Kg2 {[%emt 0:00:37]} Nf4+ {[%emt 0:00:21]} 32. Kh1 {[%emt 0:00:07]} Re2 {[%emt 0:05:28]} 33. Qc3 {[%emt 0:00:11]} Rb2 {[%emt 0:02:22]} 34. Bxd6 {[%emt 0:00:20]} Rc2 {[%emt 0:00:21]} 0-1

[Event "22nd ETCC Women 2019"]
[Site "Batumi"]
[Date "2019.10.28"]
[Round "5.30"]
[White "Yildiz Kadioglu, Betul Cemre"]
[Black "Paulet, Iozefina"]
[Result "1-0"]
[ECO "A62"]
[WhiteElo "2338"]
[BlackElo "2288"]
[Annotator "NA"]
[PlyCount "93"]
[EventDate "2019.10.24"]
[EventType "team-tourn"]
[EventCountry "GEO"]
[SourceTitle "playchess.com"]
[Source "ChessBase"]
[SourceQuality "1"]
[WhiteTeam "Turkey"]
[BlackTeam "Netherlands"]
[WhiteTeamCountry "TUR"]
[BlackTeamCountry "NED"]
[TimeControl "40/5400+30:1800+30"]

1. d4 {[%emt 0:00:00]} Nf6 {[%emt 0:00:00]} 2. c4 {[%emt 0:00:00]} c5 {[%emt 0:00:40]} 3. d5 {[%emt 0:00:40]} e6 {[%emt 0:00:08]} 4. Nc3 {[%emt 0:00:57]} exd5 {[%emt 0:00:05]} 5. cxd5 {[%emt 0:00:05]} d6 {[%emt 0:00:05]} 6. Nf3 {[%emt 0:00:50]} g6 {[%emt 0:00:11]} 7. g3 {[%emt 0:00:03]} Bg7 {[%emt 0:00:08]} 8. Bg2 {[%emt 0:00:02]} O-O {[%emt 0:00:13]} 9. O-O {[%emt 0:00:04]} a6 {[%emt 0:02:34]} 10. a4 {[%emt 0:00:06]} Re8 {[%emt 0:02:39]} 11. Bf4 {[%emt 0:01:07]} Nbd7 {[%emt 0:18:48]} 12. Bxd6 {[%emt 0:08:18]} Qb6 {[%emt 0:04:23]} 13. Bf4 {[%emt 0:00:53]} Qxb2 {[%emt 0:02:37]} 14. Bd2 {[%emt 0:12:44]} Ne4 {[%emt 0:07:54]} 15. Nxe4 {[%emt 0:03:51]} Rxe4 {[%emt 0:01:26]} 16. Rc1 {[%emt 0:07:59]} h6 {[%emt 0:14:04]} 17. Ne1 {[%emt 0:07:04]} Rxa4 {[%emt 0:16:27]} 18. Qxa4 {[%emt 0:04:30]} Qxd2 {[%emt 0:00:03]} 19. Rc2 {[%emt 0:02:11]} Qg5 {[%emt 0:01:12]} 20. Nd3 {[%emt 0:02:04]} b5 {[%emt 0:01:13]} 21. Qa5 {[%emt 0:01:15]} c4 {[%emt 0:01:33]} 22. Nb4 {[%emt 0:01:46]} Kh7 {[%emt 0:10:51]} 23. d6 {[%emt 0:06:04]} Rb8 {[%emt 0:03:50]} 24. Qc7 {[%emt 0:04:01]} Qc5 {[%emt 0:01:40]} 25. Nc6 {[%emt 0:01:31]} Ra8 {[%emt 0:03:19]} 26. Ne7 {[%emt 0:00:29]} Rb8 {[%emt 0:02:56]} 27. Bc6 {[%emt 0:00:42]} Qb6 {[%emt 0:01:24]} 28. Bxd7 {[%emt 0:02:27]} Bxd7 {[%emt 0:00:04]} 29. Qxd7 {[%emt 0:00:15]} Rd8 {[%emt 0:00:05]} 30. Qc6 {[%emt 0:06:59]} Qxc6 {[%emt 0:00:08]} 31. Nxc6 {[%emt 0:00:02]} Rxd6 {[%emt 0:00:04]} 32. Na5 {[%emt 0:00:28]} h5 {[%emt 0:02:39]} 33. Rb1 {[%emt 0:01:52]} h4 {[%emt 0:00:10]} 34. Kf1 {[%emt 0:01:22]} h3 {[%emt 0:00:05]} 35. e3 {[%emt 0:00:18]} Rd3 {[%emt 0:00:20]} 36. Nc6 {[%emt 0:00:37]} Ra3 {[%emt 0:01:16]} 37. Ke2 {[%emt 0:00:48]} Ba1 {[%emt 0:01:04]} 38. Kf3 {[%emt 0:05:53]} c3 {[%emt 0:01:03]} 39. Rb4 {[%emt 0:05:16]} Bb2 {[%emt 0:00:39]} 40. Ne5 {[%emt 0:00:00]} Ra1 {[%emt 0:00:00]} 41. Nd3 {[%emt 0:05:43]} Rh1 {[%emt 0:05:10]} 42. Nxb2 {[%emt 0:00:48]} cxb2 {[%emt 0:00:34]} 43. Rcxb2 {[%emt 0:00:28]} Rxh2 {[%emt 0:01:07]} 44. Rb1 {[%emt 0:00:35]} f5 {[%emt 0:02:02]} 45. Rd4 {[%emt 0:01:36]} Kh6 {[%emt 0:02:51]} 46. e4 {[%emt 0:02:26]} f4 {[%emt 0:01:21]} 47. gxf4 {[%emt 0:01:07]} 1-0

[Event "22nd ETCC Women 2019"]
[Site "Batumi"]
[Date "2019.10.28"]
[Round "5.31"]
[White "Lanchava, Tea"]
[Black "Ozturk, Kubra"]
[Result "1-0"]
[ECO "A06"]
[WhiteElo "2236"]
[BlackElo "2317"]
[Annotator "NA"]
[PlyCount "83"]
[EventDate "2019.10.24"]
[EventType "team-tourn"]
[EventCountry "GEO"]
[SourceTitle "playchess.com"]
[Source "ChessBase"]
[SourceQuality "1"]
[WhiteTeam "Netherlands"]
[BlackTeam "Turkey"]
[WhiteTeamCountry "NED"]
[BlackTeamCountry "TUR"]
[TimeControl "40/5400+30:1800+30"]

1. Nf3 {[%emt 0:00:00]} d5 {[%emt 0:00:00]} 2. e3 {[%emt 0:00:20]} c5 {[%emt 0:08:56]} 3. c4 {[%emt 0:07:51]} Nf6 {[%emt 0:04:47]} 4. cxd5 {[%emt 0:06:51]} Nxd5 {[%emt 0:00:14]} 5. Nc3 {[%emt 0:03:17]} Nc6 {[%emt 0:02:57]} 6. Bc4 {[%emt 0:06:38]} Nb6 {[%emt 0:13:49]} 7. Bb5 {[%emt 0:03:38]} Bd7 {[%emt 0:02:55]} 8. O-O {[%emt 0:00:45]} e6 {[%emt 0:03:43]} 9. b3 {[%emt 0:08:01]} Qc7 {[%emt 0:07:01]} 10. Bb2 {[%emt 0:02:28]} a6 {[%emt 0:01:12]} 11. Be2 {[%emt 0:00:32]} Be7 {[%emt 0:20:59]} 12. Rc1 {[%emt 0:01:40]} f5 {[%emt 0:01:28]} 13. Nb1 {[%emt 0:07:28]} e5 {[%emt 0:06:51]} 14. d4 {[%emt 0:01:45]} cxd4 {[%emt 0:12:27]} 15. exd4 {[%emt 0:00:20]} e4 {[%emt 0:01:03]} 16. d5 {[%emt 0:04:50]} exf3 {[%emt 0:00:48]} 17. dxc6 {[%emt 0:09:31]} Bxc6 {[%emt 0:00:39]} 18. Bxf3 {[%emt 0:00:34]} O-O {[%emt 0:00:43]} 19. Qe2 {[%emt 0:03:48]} Bg5 {[%emt 0:02:24]} 20. Rc5 {[%emt 0:12:21]} Qe7 {[%emt 0:02:43]} 21. Re5 {[%emt 0:00:48]} Qf7 {[%emt 0:00:47]} 22. Bxc6 {[%emt 0:00:58]} bxc6 {[%emt 0:00:11]} 23. Rc5 {[%emt 0:00:23]} Nd5 {[%emt 0:02:01]} 24. Rxc6 {[%emt 0:00:28]} Rae8 {[%emt 0:00:44]} 25. Qc4 {[%emt 0:00:39]} Re4 {[%emt 0:00:15]} 26. Qc5 {[%emt 0:00:50]} Be7 {[%emt 0:01:07]} 27. Qa7 {[%emt 0:01:18]} Re2 {[%emt 0:01:03]} 28. Bd4 {[%emt 0:01:54]} f4 {[%emt 0:00:19]} 29. f3 {[%emt 0:04:03]} Nb4 {[%emt 0:01:00]} 30. Rc7 {[%emt 0:00:24]} Qg6 {[%emt 0:00:40]} 31. Bf2 {[%emt 0:00:11]} Nd5 {[%emt 0:00:20]} 32. Nc3 {[%emt 0:04:48]} Rxf2 {[%emt 0:00:43]} 33. Rxf2 {[%emt 0:00:44]} Nxc7 {[%emt 0:00:23]} 34. Qxc7 {[%emt 0:00:07]} Bd8 {[%emt 0:01:09]} 35. Qc4+ {[%emt 0:00:13]} Kh8 {[%emt 0:00:07]} 36. Kf1 {[%emt 0:03:12]} Bb6 {[%emt 0:00:18]} 37. Re2 {[%emt 0:00:28]} Be3 {[%emt 0:01:01]} 38. Nd5 {[%emt 0:00:47]} Qh6 {[%emt 0:00:26]} 39. h3 {[%emt 0:01:17]} Rd8 {[%emt 0:00:36]} 40. Qe4 {[%emt 0:00:00]} Qc6 {[%emt 0:00:00]} 41. Nxe3 {[%emt 0:02:01]} Qxe4 {[%emt 0:04:29]} 42. fxe4 {[%emt 0:03:24]} 1-0

[Event "22nd ETCC Women 2019"]
[Site "Batumi"]
[Date "2019.10.28"]
[Round "5.32"]
[White "Caglar, Sila"]
[Black "Ratsma, Rosa"]
[Result "1-0"]
[ECO "C45"]
[WhiteElo "2242"]
[BlackElo "2283"]
[Annotator "NA"]
[PlyCount "124"]
[EventDate "2019.10.24"]
[EventType "team-tourn"]
[EventCountry "GEO"]
[SourceTitle "playchess.com"]
[Source "ChessBase"]
[SourceQuality "1"]
[WhiteTeam "Turkey"]
[BlackTeam "Netherlands"]
[WhiteTeamCountry "TUR"]
[BlackTeamCountry "NED"]
[TimeControl "40/5400+30:1800+30"]

1. e4 {[%emt 0:00:00]} e5 {[%emt 0:00:00]} 2. Nf3 {[%emt 0:00:00]} Nc6 {[%emt 0:00:00]} 3. d4 {[%emt 0:00:00]} exd4 {[%emt 0:00:00]} 4. Nxd4 {[%emt 0:00:00]} Nf6 {[%emt 0:00:00]} 5. Nxc6 {[%emt 0:00:04]} bxc6 {[%emt 0:00:07]} 6. e5 {[%emt 0:00:03]} Qe7 {[%emt 0:00:07]} 7. Qe2 {[%emt 0:00:04]} Nd5 {[%emt 0:00:08]} 8. c4 {[%emt 0:00:10]} Nb6 {[%emt 0:00:06]} 9. Nc3 {[%emt 0:00:09]} Ba6 {[%emt 0:00:13]} 10. b3 {[%emt 0:00:31]} O-O-O {[%emt 0:00:30]} 11. Bb2 {[%emt 0:14:45]} Re8 {[%emt 0:00:51]} 12. f4 {[%emt 0:12:06]} f6 {[%emt 0:00:49]} 13. Ne4 {[%emt 0:07:10]} fxe5 {[%emt 0:07:40]} 14. fxe5 {[%emt 0:01:10]} d5 {[%emt 0:04:22]} 15. Nd2 {[%emt 0:01:52]} g6 {[%emt 0:02:55]} 16. Qg4+ {[%emt 0:10:13]} Kb8 {[%emt 0:03:27]} 17. O-O-O {[%emt 0:10:22]} Bg7 {[%emt 0:08:12]} 18. cxd5 {[%emt 0:02:53]} Bc8 {[%emt 0:02:31]} 19. Qg3 {[%emt 0:09:26]} cxd5 {[%emt 0:02:14]} 20. Nf3 {[%emt 0:00:47]} Bb7 {[%emt 0:08:23]} 21. Kb1 {[%emt 0:01:08]} a5 {[%emt 0:08:25]} 22. Bb5 {[%emt 0:02:59]} c6 {[%emt 0:12:37]} 23. Bd3 {[%emt 0:00:47]} Rc8 {[%emt 0:03:05]} 24. Qg5 {[%emt 0:06:34]} Rhe8 {[%emt 0:03:55]} 25. Rhe1 {[%emt 0:04:07]} a4 {[%emt 0:01:42]} 26. Qxe7 {[%emt 0:03:32]} Rxe7 {[%emt 0:00:06]} 27. Ba3 {[%emt 0:00:36]} c5 {[%emt 0:04:37]} 28. Bb5 {[%emt 0:01:02]} axb3 {[%emt 0:06:52]} 29. axb3 {[%emt 0:00:01]} d4 {[%emt 0:01:06]} 30. Rxd4 {[%emt 0:02:48]} Bxf3 {[%emt 0:05:35]} 31. gxf3 {[%emt 0:00:13]} Ra7 {[%emt 0:00:13]} 32. Rd6 {[%emt 0:00:47]} Rxa3 {[%emt 0:00:53]} 33. Kb2 {[%emt 0:00:17]} Ra5 {[%emt 0:01:00]} 34. Rxb6+ {[%emt 0:00:06]} Ka7 {[%emt 0:00:37]} 35. Rc6 {[%emt 0:01:43]} Rxc6 {[%emt 0:03:51]} 36. Bxc6 {[%emt 0:00:01]} Kb6 {[%emt 0:01:39]} 37. Bd5 {[%emt 0:00:50]} Ra7 {[%emt 0:00:38]} 38. Kc2 {[%emt 0:00:31]} Kc7 {[%emt 0:02:50]} 39. Kd3 {[%emt 0:00:42]} Bf8 {[%emt 0:02:48]} 40. Re2 {[%emt 0:00:00]} Be7 {[%emt 0:00:00]} 41. f4 {[%emt 0:00:50]} Bf8 {[%emt 0:06:06]} 42. Ke4 {[%emt 0:01:56]} Ra1 {[%emt 0:05:54]} 43. Bg8 {[%emt 0:00:49]} Rf1 {[%emt 0:03:41]} 44. Re3 {[%emt 0:05:02]} h6 {[%emt 0:03:45]} 45. Rg3 {[%emt 0:03:10]} Re1+ {[%emt 0:04:33]} 46. Kd5 {[%emt 0:00:39]} Rf1 {[%emt 0:00:58]} 47. Rxg6 {[%emt 0:02:16]} Rxf4 {[%emt 0:00:07]} 48. Rf6 {[%emt 0:01:25]} Rxf6 {[%emt 0:02:06]} 49. exf6 {[%emt 0:00:03]} Kd7 {[%emt 0:02:33]} 50. h4 {[%emt 0:02:58]} Bd6 {[%emt 0:05:03]} 51. Be6+ {[%emt 0:00:38]} Kc7 {[%emt 0:00:06]} 52. h5 {[%emt 0:00:02]} Bf4 {[%emt 0:02:09]} 53. Kxc5 {[%emt 0:00:55]} Bg5 {[%emt 0:00:36]} 54. f7 {[%emt 0:00:06]} Be7+ {[%emt 0:00:10]} 55. Kc4 {[%emt 0:01:06]} Kb6 {[%emt 0:02:00]} 56. b4 {[%emt 0:00:05]} Kc6 {[%emt 0:00:10]} 57. b5+ {[%emt 0:00:24]} Kb6 {[%emt 0:00:08]} 58. Bd7 {[%emt 0:00:12]} Kc7 {[%emt 0:00:22]} 59. Be8 {[%emt 0:00:04]} Kb6 {[%emt 0:01:10]} 60. Kd5 {[%emt 0:00:05]} Kc7 {[%emt 0:00:28]} 61. Ke6 {[%emt 0:00:03]} Kd8 {[%emt 0:00:34]} 62. Kf5 {[%emt 0:00:15]} Bc5 {[%emt 0:01:10]} 1-0

[Event "22nd ETCC Women 2019"]
[Site "Batumi"]
[Date "2019.10.28"]
[Round "5.33"]
[White "Hoolt, Sarah"]
[Black "Reizniece-Ozola, Dana"]
[Result "0-1"]
[ECO "B92"]
[WhiteElo "2323"]
[BlackElo "2297"]
[Annotator "NA RC"]
[PlyCount "86"]
[EventDate "2019.10.24"]
[EventType "team-tourn"]
[EventCountry "GEO"]
[SourceTitle "playchess.com"]
[Source "ChessBase"]
[SourceQuality "1"]
[WhiteTeam "GER"]
[BlackTeam "LAT"]
[BlackTeamCountry "LAT"]
[TimeControl "40/5400+30:1800+30"]

1. e4 {[%emt 0:00:00]} c5 {[%emt 0:00:00]} 2. Nf3 {[%emt 0:00:00]} d6 {[%emt 0:00:06]} 3. d4 {[%emt 0:00:01]} cxd4 {[%emt 0:00:12]} 4. Nxd4 {[%emt 0:00:05]} Nf6 {[%emt 0:00:21]} 5. Nc3 {[%emt 0:00:06]} a6 {[%emt 0:00:25]} 6. Be2 {[%emt 0:00:14]} e5 {[%emt 0:01:09]} 7. Nb3 {[%emt 0:00:17]} Be7 {[%emt 0:00:59]} 8. Be3 {[%emt 0:00:09]} Be6 {[%emt 0:00:43]} 9. Nd5 {[%emt 0:00:09]} Nbd7 {[%emt 0:02:23]} 10. Qd3 {[%emt 0:00:21]} Rc8 {[%emt 0:07:33]} 11. O-O {[%emt 0:04:56]} Bxd5 {[%emt 0:07:59]} 12. exd5 {[%emt 0:00:06]} Nb6 {[%emt 0:01:35]} 13. Bxb6 {[%emt 0:04:03]} Qxb6 {[%emt 0:00:07]} 14. c4 {[%emt 0:00:22]} O-O {[%emt 0:01:14]} 15. a4 {[%emt 0:05:27]} a5 {[%emt 0:11:13]} 16. Ra3 {[%emt 0:00:59]} g6 {[%emt 0:03:11]} 17. h4 {[%emt 0:19:35]} Nd7 {[%emt 0:13:02]} 18. h5 {[%emt 0:05:38]} Qd8 {[%emt 0:06:07]} 19. Qh3 {[%emt 0:04:19]} Bg5 {[%emt 0:02:55]} 20. hxg6 {[%emt 0:12:07]} hxg6 {[%emt 0:00:52]} 21. Nxa5 {[%emt 0:00:28]} Nf6 {[%emt 0:14:55]} 22. b4 {[%emt 0:06:28]} Kg7 {[%emt 0:02:11]} 23. Nxb7 {[%emt 0:18:17]} Qb6 {[%emt 0:04:20]} 24. Na5 {[%emt 0:01:10]} Qxb4 {[%emt 0:04:55]} 25. Nc6 {[%emt 0:00:42]} Qb2 {[%emt 0:00:55]} 26. Re1 {[%emt 0:05:28]} Rh8 {[%emt 0:00:27]} 27. Qc3 {[%emt 0:08:37]} Qxc3 {[%emt 0:01:54]} 28. Rxc3 {[%emt 0:00:01]} Bd2 {[%emt 0:00:08]} 29. Rec1 {[%emt 0:00:58]} Bxc3 {[%emt 0:02:28]} 30. Rxc3 {[%emt 0:00:05]} Ne4 {[%emt 0:01:11]} 31. Ra3 {[%emt 0:01:03]} Nc5 {[%emt 0:03:31]} 32. a5 {[%emt 0:00:06]} Ra8 {[%emt 0:00:26]} 33. Bd1 {[%emt 0:01:31]} Rh4 {[%emt 0:01:33]} 34. g4 {[%emt 0:00:33]} f5 {[%emt 0:01:28]} 35. gxf5 {[%emt 0:02:05]} gxf5 {[%emt 0:00:10]} 36. Be2 {[%emt 0:00:30]} Kf6 {[%emt 0:00:23]} 37. Rg3 {[%emt 0:00:18]} Rah8 {[%emt 0:00:24]} 38. Kf1 {[%emt 0:00:35]} f4 {[%emt 0:02:34]} 39. Rg1 {[%emt 0:00:32]} e4 {[%emt 0:00:29]} 40. Bg4 {[%emt 0:00:00]} f3 {[%emt 0:00:00]} 41. Be6 {[%emt 0:06:06]} Nd3 {[%emt 0:03:01]} 42. Nd4 {[%emt 0:08:29]} Rh2 {[%emt 0:00:35]} 43. Rg3 {[%emt 0:00:05]} Rh1+ {[%emt 0:00:18]} 0-1